bitfinex-derivatives/quotes_SOLF0:USTF0_20251025
["timestamp","ask_amount","ask_price","bid_price","bid_amount"]
[1761399432426,3.97962371,192.75,192.69,2.82]
[1761399432627,3.97962371,192.74,192.69,2.82]
[1761399432816,1.20008161,192.77,192.69,2.82]
[1761399433013,3.97990648,192.76,192.69,2.82]
[1761399433212,3.97990648,192.75,192.69,2.82]
[1761399433415,3.97990648,192.74,192.69,2.82]
[1761399433619,1.20008161,192.77,192.69,2.82]
[1761399433821,3.98026609,192.76,192.69,2.82]
[1761399434021,3.98026609,192.75,192.69,2.82]
[1761399434324,3.98026609,192.74,192.69,2.82]
[1761399434521,1.20008161,192.77,192.69,2.82]
[1761399434720,3.98063915,192.76,192.69,2.82]
[1761399434921,3.98063915,192.75,192.69,2.82]
[1761399435126,3.98063915,192.74,192.69,2.82]
[1761399435324,1.20008161,192.77,192.7,4.66]
[1761399435524,3.98051518,192.76,192.7,7.51]
[1761399435718,3.98051518,192.75,192.7,7.51]
[1761399435918,3.98051518,192.74,192.71,2.85]
[1761399436119,1.20008161,192.77,192.71,2.85]
[1761399436320,3.98048479,192.76,192.71,2.85]
[1761399436520,3.98048479,192.75,192.71,2.85]
[1761399436721,3.98048479,192.74,192.71,2.85]
[1761399436924,4.78783948,192.79,192.71,2.85]
[1761399437127,3.98069289,192.78,192.71,2.85]
[1761399437328,3.98069289,192.77,192.71,2.85]
[1761399437528,3.98069289,192.76,192.71,2.85]
[1761399437828,3.98069289,192.75,192.71,2.85]
[1761399438033,4.78783948,192.79,192.71,2.85]
[1761399438215,3.9640932,192.78,192.71,2.85]
[1761399438415,3.9640932,192.77,192.71,2.85]
[1761399438728,3.9640932,192.76,192.71,2.85]
[1761399438929,3.9640932,192.75,192.71,2.85]
[1761399439129,4.78783948,192.79,192.71,2.85]
[1761399439330,3.96396719,192.78,192.71,2.85]
[1761399439630,3.96396719,192.77,192.71,2.85]
[1761399439922,3.96396719,192.76,192.71,2.85]
[1761399440128,3.96396719,192.75,192.71,2.85]
[1761399440328,4.78783948,192.79,192.71,2.85]
[1761399440529,3.96469005,192.78,192.71,2.85]
[1761399440831,3.96469005,192.77,192.71,2.85]
[1761399441028,3.96469005,192.76,192.71,2.85]
[1761399441229,3.96469005,192.75,192.71,2.85]
[1761399441431,4.78783948,192.79,192.71,2.85]
[1761399441619,3.96469897,192.78,192.71,2.85]
[1761399441824,3.96469897,192.77,192.71,2.85]
[1761399442020,3.96469897,192.76,192.71,2.85]
[1761399442226,3.96469897,192.75,192.71,2.85]
[1761399442425,4.78783948,192.79,192.71,2.85]
[1761399442626,3.96454109,192.78,192.71,2.85]
[1761399442829,3.96454109,192.77,192.71,2.85]
[1761399443032,3.96454109,192.76,192.71,2.85]
[1761399443234,3.96454109,192.75,192.71,2.85]
[1761399443434,4.78783948,192.79,192.71,2.85]
[1761399443631,3.96442096,192.78,192.71,2.85]
[1761399443832,3.96442096,192.77,192.71,2.85]
[1761399444135,3.96442096,192.76,192.71,2.85]
[1761399444330,3.96442096,192.75,192.71,2.85]
[1761399444530,4.78783948,192.79,192.71,2.85]
[1761399444832,3.96453267,192.78,192.71,2.85]
[1761399445031,3.96453267,192.77,192.71,2.85]
[1761399445231,3.96453267,192.76,192.71,2.85]
[1761399445430,3.96453267,192.75,192.71,2.85]
[1761399445631,4.78783948,192.79,192.71,2.85]
[1761399445833,3.96455116,192.78,192.71,2.85]
[1761399446132,3.96455116,192.77,192.71,2.85]
[1761399446332,3.96455116,192.76,192.71,2.85]
[1761399446533,3.96455116,192.75,192.71,2.85]
[1761399446729,4.78783948,192.79,192.71,2.85]
[1761399446935,3.96470058,192.78,192.71,2.85]
[1761399447136,3.96470058,192.77,192.71,2.85]
[1761399447324,3.96470058,192.76,192.71,2.85]
[1761399447529,3.96470058,192.75,192.71,2.85]
[1761399447731,5.98792109,192.8,192.71,2.85]
[1761399447930,3.9649879,192.79,192.71,2.85]
[1761399448126,3.9649879,192.78,192.71,2.85]
[1761399448338,3.9649879,192.77,192.71,2.85]
[1761399448641,3.9649879,192.76,192.71,2.85]
[1761399448841,5.98792109,192.8,192.71,2.85]
[1761399449041,3.96523967,192.79,192.71,2.85]
[1761399449234,3.96523967,192.78,192.71,2.85]
[1761399449430,3.96523967,192.77,192.71,2.85]
[1761399449636,3.96523967,192.76,192.71,2.85]
[1761399449839,1.20008161,192.8,192.71,2.85]
[1761399450045,3.96543182,192.79,192.71,2.85]
[1761399450245,3.96543182,192.78,192.71,2.85]
[1761399450544,3.96543182,192.77,192.71,2.85]
[1761399450737,3.96543182,192.76,192.71,2.85]
[1761399450941,5.98792109,192.8,192.71,2.85]
[1761399451141,3.96542272,192.79,192.71,2.85]
[1761399451338,3.96542272,192.78,192.71,2.85]
[1761399451541,3.96542272,192.77,192.71,2.85]
[1761399451741,3.96542272,192.76,192.71,2.85]
[1761399451940,3.96542272,192.75,192.71,2.85]
[1761399452137,1.20008161,192.77,192.71,2.85]
[1761399452339,3.96555809,192.76,192.71,2.85]
[1761399452643,3.96555809,192.75,192.71,2.85]
[1761399452841,1.20008161,192.77,192.71,2.85]
[1761399453044,3.96599144,192.76,192.71,2.85]
[1761399453238,3.96599144,192.75,192.71,2.85]
[1761399453433,1.20008161,192.77,192.68,2.85]
[1761399453733,3.96657093,192.76,192.68,2.85]
[1761399453933,3.96657093,192.75,192.68,2.85]
[1761399454142,1.20008161,192.77,192.68,2.85]
[1761399454339,3.96673615,192.76,192.68,2.85]
[1761399454537,3.96673615,192.75,192.68,2.85]
[1761399454738,3.96673615,192.74,192.68,2.85]
[1761399454942,1.20008161,192.77,192.68,2.85]
[1761399455140,3.9670712,192.76,192.68,2.85]
[1761399455342,3.9670712,192.75,192.68,2.85]
[1761399455541,3.9670712,192.74,192.69,5.07]
[1761399455745,1.20008161,192.77,192.7,2.85]
[1761399455946,3.96770821,192.76,192.7,2.85]
[1761399456147,3.96770821,192.75,192.7,2.85]
[1761399456346,3.96770821,192.74,192.7,2.85]
[1761399456548,1.20008161,192.77,192.7,2.85]
[1761399456746,3.96878867,192.76,192.7,2.85]
[1761399456939,3.96878867,192.75,192.7,2.85]
[1761399457135,3.96878867,192.74,192.7,2.85]
[1761399457336,3.96968912,192.73,192.7,2.85]
[1761399457635,1.20008161,192.77,192.7,2.85]
[1761399457840,3.9696887,192.76,192.7,2.85]
[1761399458040,3.9696887,192.75,192.7,2.85]
[1761399458242,3.9696887,192.74,192.7,2.85]
[1761399458444,3.9696887,192.73,192.7,2.85]
[1761399458643,1.20008161,192.77,192.7,2.85]
[1761399458848,3.96991725,192.76,192.7,2.85]
[1761399459048,3.96991725,192.75,192.7,2.85]
[1761399459246,3.96991725,192.74,192.7,2.85]
[1761399459445,3.96991725,192.73,192.7,2.85]
[1761399459646,1.20008161,192.77,192.7,2.85]
[1761399459854,3.97044837,192.76,192.7,2.85]
[1761399460053,3.97044837,192.75,192.7,2.85]
[1761399460247,3.97044837,192.74,192.7,2.85]
[1761399460449,3.97044837,192.73,192.7,2.85]
[1761399460648,1.20008161,192.77,192.7,2.85]
[1761399460948,3.9710501,192.76,192.7,2.85]
[1761399461148,3.9710501,192.75,192.7,2.85]
[1761399461350,3.9710501,192.74,192.7,2.85]
[1761399461645,3.9710501,192.73,192.7,2.85]
[1761399461842,5.98792109,192.77,192.7,2.85]
[1761399462043,3.9719352,192.76,192.7,2.85]
[1761399462246,3.9719352,192.75,192.7,2.85]
[1761399462442,3.9719352,192.74,192.7,2.85]
[1761399462644,3.9719352,192.73,192.7,2.85]
[1761399462849,4.78783948,192.78,192.7,2.85]
[1761399463157,3.97254964,192.77,192.7,2.85]
[1761399463355,3.97254964,192.76,192.7,2.85]
[1761399463654,3.97254964,192.75,192.7,2.85]
[1761399463853,3.97254964,192.74,192.7,2.85]
[1761399464055,3.97254964,192.73,192.7,2.85]
[1761399464245,4.78783948,192.78,192.7,2.85]
[1761399464554,3.97379638,192.77,192.7,2.85]
[1761399464755,3.97379638,192.76,192.7,2.85]
[1761399464954,3.97379638,192.75,192.7,2.85]
[1761399465149,3.97379638,192.74,192.7,2.85]
[1761399465344,3.97379638,192.73,192.7,2.85]
[1761399465542,4.78783948,192.78,192.7,2.85]
[1761399465848,3.97401906,192.77,192.7,2.85]
[1761399466142,3.97401906,192.76,192.7,2.85]
[1761399466346,3.97401906,192.75,192.7,2.85]
[1761399466541,3.97401906,192.74,192.7,2.85]
[1761399466756,3.97401906,192.73,192.7,2.85]
[1761399466954,4.78783948,192.77,192.7,2.85]
[1761399467155,3.97829605,192.76,192.7,2.85]
[1761399467358,3.97829605,192.75,192.7,2.85]
[1761399467556,3.97829605,192.74,192.7,2.85]
[1761399467858,3.97829605,192.73,192.7,2.85]
[1761399468051,4.78783948,192.77,192.7,2.85]
[1761399468254,3.97717489,192.76,192.7,2.85]
[1761399468447,3.97717489,192.75,192.7,2.85]
[1761399468755,3.97717489,192.74,192.7,2.85]
[1761399468953,3.97717489,192.73,192.7,2.85]
[1761399469150,4.78783948,192.78,192.7,2.85]
[1761399469347,3.97628184,192.77,192.7,2.85]
[1761399469552,3.97628184,192.76,192.7,2.85]
[1761399469752,3.97628184,192.75,192.7,2.85]
[1761399469952,3.97628184,192.74,192.7,2.85]
[1761399470153,3.97628184,192.73,192.7,2.85]
[1761399470453,4.78783948,192.78,192.7,2.85]
[1761399470653,3.9763787,192.77,192.7,2.85]
[1761399470854,3.9763787,192.76,192.7,2.85]
[1761399471154,3.9763787,192.75,192.7,2.85]
[1761399471356,3.9763787,192.74,192.7,2.85]
[1761399471557,3.9763787,192.73,192.7,2.85]
[1761399471751,4.78783948,192.78,192.7,2.85]
[1761399471950,3.97648005,192.77,192.7,2.85]
[1761399472251,3.97648005,192.76,192.7,2.85]
[1761399472449,3.97648005,192.75,192.7,2.85]
[1761399472653,3.97648005,192.74,192.7,2.85]
[1761399472854,3.97648005,192.73,192.7,2.85]
[1761399473062,4.78783948,192.78,192.7,2.85]
[1761399473260,3.9759618,192.77,192.7,2.85]
[1761399473460,3.9759618,192.76,192.7,2.85]
[1761399473659,3.9759618,192.75,192.7,2.85]
[1761399473958,3.9759618,192.74,192.7,2.85]
[1761399474160,3.9759618,192.73,192.7,2.85]
[1761399474460,4.78783948,192.77,192.7,2.85]
[1761399474659,3.97552864,192.76,192.7,2.85]
[1761399474958,3.97552864,192.75,192.7,2.85]
[1761399475158,3.97552864,192.74,192.7,2.85]
[1761399475360,3.97552864,192.73,192.7,2.85]
[1761399475655,4.78783948,192.77,192.7,2.85]
[1761399475860,3.97446635,192.76,192.7,2.85]
[1761399476160,3.97446635,192.75,192.7,2.85]
[1761399476350,3.97446635,192.74,192.7,2.85]
[1761399476553,3.97446635,192.73,192.7,2.85]
[1761399476752,4.78783948,192.77,192.7,2.85]
[1761399476954,3.97423627,192.76,192.7,2.85]
[1761399477156,3.97441778,192.75,192.7,2.85]
[1761399477355,3.97441778,192.74,192.7,2.85]
[1761399477554,3.97441778,192.73,192.7,2.85]
[1761399477758,4.80714431,192.77,192.7,2.85]
[1761399477952,3.97385273,192.76,192.7,2.85]
[1761399478165,3.97385273,192.75,192.7,2.85]
[1761399478357,3.97385273,192.74,192.7,2.85]
[1761399478664,3.97385273,192.73,192.7,2.85]
[1761399478869,4.80714431,192.78,192.7,2.85]
[1761399479057,3.97424594,192.77,192.7,2.85]
[1761399479364,3.97424594,192.76,192.7,2.85]
[1761399479563,3.97424594,192.75,192.7,2.85]
[1761399479770,3.97424594,192.74,192.7,2.85]
[1761399479965,3.97424594,192.73,192.7,2.85]
[1761399480166,4.80714431,192.78,192.7,2.85]
[1761399480465,3.97523621,192.77,192.7,2.85]
[1761399480664,3.97523621,192.76,192.7,2.85]
[1761399480864,3.97523621,192.75,192.7,2.85]
[1761399481072,3.97523621,192.74,192.7,2.85]
[1761399481274,4.80714431,192.78,192.7,2.85]
[1761399481472,3.9749487,192.77,192.7,2.85]
[1761399481774,3.9749487,192.76,192.7,2.85]
[1761399481971,4.80714431,192.78,192.7,2.85]
[1761399481972,3.9749487,192.75,192.7,2.85]
[1761399482173,3.9749487,192.74,192.7,2.85]
[1761399482376,4.80714431,192.78,192.7,2.85]
[1761399482562,3.97482148,192.77,192.7,2.85]
[1761399482764,3.97482148,192.76,192.7,2.85]
[1761399482971,3.97482148,192.75,192.7,2.85]
[1761399483170,3.97482148,192.74,192.7,2.85]
[1761399483370,4.80714431,192.78,192.7,2.85]
[1761399483571,3.97470525,192.77,192.7,2.85]
[1761399483776,3.97470525,192.76,192.7,2.85]
[1761399483964,3.97470525,192.75,192.7,2.85]
[1761399484168,3.97470525,192.74,192.7,2.85]
[1761399484368,4.80714431,192.78,192.7,2.85]
[1761399484566,3.97435397,192.77,192.7,2.85]
[1761399484770,3.97435397,192.76,192.7,2.85]
[1761399484970,3.97435397,192.75,192.7,2.85]
[1761399485172,3.97435397,192.74,192.7,2.85]
[1761399485373,4.80714431,192.78,192.7,2.85]
[1761399485574,3.97460735,192.77,192.7,2.85]
[1761399485772,3.97460735,192.76,192.7,2.85]
[1761399486073,3.97460735,192.75,192.7,2.85]
[1761399486273,3.97460735,192.74,192.7,2.85]
[1761399486571,4.80714431,192.78,192.7,2.85]
[1761399486778,3.9758901,192.77,192.7,2.85]
[1761399486972,3.9758901,192.76,192.7,2.85]
[1761399487172,3.9758901,192.75,192.7,2.85]
[1761399487372,3.9758901,192.74,192.72,2.86]
[1761399487569,4.80714431,192.78,192.72,2.86]
[1761399487882,4.80714431,192.8,192.72,2.86]
[1761399488081,4.80714431,192.79,192.72,2.86]
[1761399489375,1.20008161,192.78,192.72,2.86]
[1761399490178,4.80714431,192.79,192.72,2.86]
[1761399490383,1.20008161,192.78,192.72,2.86]
[1761399490978,4.80714431,192.77,192.72,2.86]
[1761399492786,4.80714431,192.77,192.71,4.85]
[1761399495887,4.80714431,192.77,192.72,2.8]
[1761399496190,4.80714431,192.78,192.72,2.8]
[1761399499587,3.97281367,192.77,192.72,2.8]
[1761399499790,3.97281367,192.76,192.72,2.8]
[1761399500090,4.80714431,192.78,192.72,2.8]
[1761399500091,3.97281367,192.75,192.72,2.8]
[1761399500289,3.97281367,192.74,192.72,2.8]
[1761399500489,3.97281367,192.73,192.72,2.8]
[1761399502497,4.80714431,192.78,192.72,2.8]
[1761399502696,3.97336727,192.77,192.72,2.8]
[1761399502993,3.97336727,192.76,192.72,2.8]
[1761399503196,3.97336727,192.75,192.72,2.8]
[1761399503388,4.80714431,192.78,192.72,2.8]
[1761399503389,3.97336727,192.74,192.72,2.8]
[1761399503588,4.80714431,192.78,192.72,2.8]
[1761399503789,3.97341991,192.77,192.72,2.8]
[1761399503997,3.97341991,192.76,192.72,2.8]
[1761399504198,3.97341991,192.75,192.72,2.8]
[1761399504395,3.97341991,192.74,192.72,2.8]
[1761399504596,4.80714431,192.78,192.72,2.8]
[1761399504790,3.97344897,192.77,192.72,2.8]
[1761399504991,3.97344897,192.76,192.72,2.8]
[1761399505191,3.97344897,192.75,192.72,2.8]
[1761399505391,3.97344897,192.74,192.72,2.8]
[1761399505591,4.80714431,192.78,192.72,2.8]
[1761399505794,3.97329226,192.77,192.72,2.8]
[1761399505993,3.97329226,192.76,192.72,2.8]
[1761399506198,3.97329226,192.75,192.72,2.8]
[1761399506498,3.97329226,192.74,192.73,7.34]
[1761399511688,4.80714431,192.79,192.73,7.34]
[1761399511894,3.97393211,192.78,192.74,2.8]
[1761399512096,3.97393211,192.77,192.74,2.8]
[1761399512297,3.97393211,192.76,192.74,2.8]
[1761399512503,3.97393211,192.75,192.74,2.8]
[1761399513993,4.80714431,192.8,192.74,2.8]
[1761399514195,3.97358133,192.79,192.74,2.8]
[1761399514500,4.80714431,192.81,192.74,2.8]
[1761399514501,3.97358133,192.78,192.74,2.8]
[1761399514701,3.97358133,192.77,192.74,2.8]
[1761399514897,3.97358133,192.76,192.74,2.8]
[1761399515102,4.80714431,192.81,192.74,2.8]
[1761399515292,3.97264779,192.8,192.74,2.8]
[1761399515496,3.97264779,192.79,192.74,2.8]
[1761399515691,3.97264779,192.78,192.74,2.8]
[1761399515898,3.97264779,192.77,192.74,2.8]
[1761399516098,4.80714431,192.81,192.74,2.8]
[1761399516298,3.97190634,192.8,192.74,2.8]
[1761399516499,3.97190634,192.79,192.74,2.8]
[1761399516698,3.97190634,192.78,192.74,2.8]
[1761399516900,3.97190634,192.77,192.74,2.8]
[1761399517102,4.80714431,192.81,192.74,2.8]
[1761399517303,3.97131741,192.8,192.74,2.8]
[1761399517501,3.97131741,192.79,192.74,2.8]
[1761399517702,6.44645323,192.85,192.74,2.8]
[1761399517703,4.80714431,192.83,192.74,2.8]
[1761399517899,3.9710133,192.82,192.74,2.8]
[1761399518094,3.9710133,192.81,192.74,2.8]
[1761399518307,3.9710133,192.8,192.74,2.8]
[1761399518604,3.9710133,192.79,192.74,2.8]
[1761399518802,4.80714431,192.83,192.74,2.8]
[1761399519000,3.96937365,192.82,192.74,2.8]
[1761399519308,3.96937365,192.81,192.74,2.8]
[1761399519508,3.96937365,192.8,192.74,2.8]
[1761399519703,4.80714431,192.84,192.74,2.8]
[1761399519903,3.96865672,192.83,192.74,2.8]
[1761399520103,3.96865672,192.82,192.74,2.8]
[1761399520310,3.96865672,192.81,192.74,2.8]
[1761399520605,4.80714431,192.84,192.74,2.8]
[1761399520606,3.96865672,192.8,192.74,2.8]
[1761399520802,4.80714431,192.84,192.74,2.8]
[1761399521008,3.96789244,192.83,192.74,2.8]
[1761399521309,3.96789244,192.82,192.74,2.8]
[1761399521496,3.96789244,192.81,192.74,2.8]
[1761399521701,3.96789244,192.8,192.74,2.8]
[1761399521901,4.80714431,192.84,192.74,2.8]
[1761399522109,3.96710621,192.83,192.74,2.8]
[1761399522314,3.96710621,192.82,192.74,2.8]
[1761399522606,3.96710621,192.81,192.74,2.8]
[1761399522798,3.96710621,192.8,192.76,2.66]
[1761399523003,6.68240063,192.84,192.76,2.66]
[1761399523206,3.96633049,192.83,192.76,2.66]
[1761399523407,3.96633049,192.82,192.76,2.66]
[1761399523606,3.96633049,192.81,192.76,2.66]
[1761399523812,3.96633049,192.8,192.76,2.66]
[1761399524003,6.68240063,192.84,192.76,2.66]
[1761399524204,3.96583148,192.83,192.76,2.66]
[1761399524401,3.96583148,192.82,192.76,2.66]
[1761399524606,3.96583148,192.81,192.76,2.66]
[1761399524805,3.96583148,192.8,192.76,2.66]
[1761399525004,6.68240063,192.84,192.76,2.66]
[1761399525214,3.96547932,192.83,192.76,2.66]
[1761399525411,3.96547932,192.82,192.76,2.66]
[1761399525709,3.96547932,192.81,192.76,2.66]
[1761399526013,3.96547932,192.8,192.76,2.66]
[1761399526211,6.68240063,192.84,192.76,2.66]
[1761399526514,3.96454324,192.83,192.76,2.66]
[1761399526812,3.96454324,192.82,192.76,2.66]
[1761399527005,3.96454324,192.81,192.76,2.66]
[1761399527198,3.96454324,192.8,192.76,2.66]
[1761399527404,6.68240063,192.84,192.76,2.66]
[1761399527613,3.95976283,192.83,192.76,2.66]
[1761399527804,3.95976283,192.82,192.76,2.66]
[1761399528115,3.95976283,192.81,192.76,2.66]
[1761399528303,3.95976283,192.8,192.76,2.66]
[1761399528505,1.87525632,192.84,192.76,2.66]
[1761399528713,3.95891124,192.83,192.76,2.66]
[1761399529013,3.95891124,192.82,192.76,2.66]
[1761399529202,3.95891124,192.81,192.76,2.66]
[1761399529406,3.95891124,192.8,192.76,2.66]
[1761399529613,1.87525632,192.84,192.76,2.66]
[1761399529809,3.95863518,192.83,192.76,2.66]
[1761399530016,3.95863518,192.82,192.76,2.66]
[1761399530215,3.95863518,192.81,192.76,2.66]
[1761399530514,3.95863518,192.8,192.76,2.66]
[1761399530714,1.87525632,192.84,192.75,6.76]
[1761399530917,3.95601633,192.83,192.75,6.76]
[1761399531119,3.95601633,192.82,192.75,9.42]
[1761399531308,3.95601633,192.81,192.75,9.42]
[1761399531609,3.95601633,192.8,192.76,2.66]
[1761399531916,1.87525632,192.84,192.76,2.66]
[1761399532115,3.95595463,192.83,192.76,2.66]
[1761399532316,3.95595463,192.82,192.76,2.66]
[1761399532520,3.95595463,192.81,192.76,2.66]
[1761399532718,3.95595463,192.8,192.76,2.66]
[1761399532925,1.87525632,192.84,192.76,2.66]
[1761399533118,3.95577205,192.83,192.76,2.66]
[1761399533413,3.95577205,192.82,192.76,2.66]
[1761399533610,3.95577205,192.81,192.76,2.66]
[1761399533812,3.95577205,192.8,192.76,2.66]
[1761399534111,1.87525632,192.84,192.76,2.66]
[1761399534312,3.95555381,192.83,192.76,2.66]
[1761399534514,3.95555381,192.82,192.76,2.66]
[1761399534714,3.95555381,192.81,192.76,2.66]
[1761399534915,3.95555381,192.8,192.76,2.66]
[1761399535116,1.87525632,192.84,192.76,2.66]
[1761399535317,3.95537584,192.83,192.76,2.66]
[1761399535517,3.95537584,192.82,192.76,2.66]
[1761399535721,3.95537584,192.81,192.76,2.66]
[1761399535920,3.95537584,192.8,192.76,2.66]
[1761399536120,1.87525632,192.84,192.76,2.66]
[1761399536320,3.95521622,192.83,192.76,2.66]
[1761399536521,3.95521622,192.82,192.76,2.66]
[1761399536721,3.95521622,192.81,192.76,2.66]
[1761399536921,3.95521622,192.8,192.76,2.66]
[1761399537223,1.87525632,192.84,192.76,2.66]
[1761399537422,3.95550106,192.83,192.76,2.66]
[1761399537626,3.95550106,192.82,192.76,2.66]
[1761399537926,3.95550106,192.81,192.76,2.66]
[1761399538116,3.95550106,192.8,192.76,2.66]
[1761399538316,1.87525632,192.84,192.76,2.66]
[1761399538525,3.95549943,192.83,192.76,2.66]
[1761399538820,3.95549943,192.82,192.76,2.66]
[1761399539023,3.95549943,192.81,192.76,2.66]
[1761399539217,3.95549943,192.8,192.76,2.66]
[1761399539418,1.87525632,192.84,192.76,2.66]
[1761399539724,3.95569,192.83,192.76,2.66]
[1761399539925,3.95569,192.82,192.76,2.66]
[1761399540118,3.95569,192.81,192.76,2.66]
[1761399540320,3.95569,192.8,192.76,2.66]
[1761399540516,1.87525632,192.84,192.76,2.66]
[1761399540717,3.95639809,192.83,192.76,2.66]
[1761399541025,3.95639809,192.82,192.76,2.66]
[1761399541222,3.95639809,192.81,192.73,2.75]
[1761399541424,5.83165441,192.8,192.7,2.75]
[1761399541728,3.95639809,192.79,192.7,2.75]
[1761399541920,3.95639809,192.78,192.7,2.75]
[1761399542220,3.95639809,192.77,192.7,2.75]
[1761399542433,3.95639809,192.76,192.7,2.75]
[1761399542724,3.95639809,192.75,192.72,2.75]
[1761399542923,4.80714431,192.79,192.72,2.75]
[1761399543123,3.95562851,192.78,192.72,2.75]
[1761399543323,3.95562851,192.77,192.72,2.75]
[1761399543524,3.95562851,192.76,192.72,2.75]
[1761399543716,3.95562851,192.75,192.72,2.75]
[1761399543912,3.95562851,192.74,192.72,2.75]
[1761399544120,4.80714431,192.79,192.72,2.75]
[1761399544321,3.95543229,192.78,192.72,2.75]
[1761399544523,3.95543229,192.77,192.72,2.75]
[1761399544723,3.95543229,192.76,192.72,2.75]
[1761399544924,3.95543229,192.75,192.72,2.75]
[1761399545124,3.95543229,192.74,192.72,2.75]
[1761399545319,4.80714431,192.79,192.72,2.75]
[1761399545529,3.95537813,192.78,192.72,2.75]
[1761399545727,3.95537813,192.77,192.72,2.75]
[1761399545929,3.95537813,192.76,192.72,2.75]
[1761399546228,3.95537813,192.75,192.72,2.75]
[1761399546425,6.68240063,192.8,192.72,2.75]
[1761399546622,3.95593352,192.79,192.72,2.75]
[1761399546823,3.95593352,192.78,192.72,2.75]
[1761399547130,3.95593352,192.77,192.72,2.75]
[1761399547335,4.80714431,192.81,192.72,2.75]
[1761399547532,3.95644487,192.8,192.72,2.75]
[1761399547732,3.95644487,192.79,192.72,2.75]
[1761399548035,3.95644487,192.78,192.72,2.75]
[1761399548223,3.95644487,192.77,192.72,2.75]
[1761399548420,4.80714431,192.81,192.72,2.75]
[1761399548628,3.9565662,192.8,192.72,2.75]
[1761399548828,3.9565662,192.79,192.72,2.75]
[1761399549044,3.9565662,192.78,192.72,2.75]
[1761399549336,3.9565662,192.77,192.72,2.75]
[1761399549536,4.80714431,192.81,192.72,2.75]
[1761399549737,3.95588247,192.8,192.72,2.75]
[1761399550036,3.95588247,192.79,192.72,2.75]
[1761399550232,3.95588247,192.78,192.72,2.75]
[1761399550436,3.95588247,192.77,192.72,2.75]
[1761399550640,4.80714431,192.82,192.72,2.75]
[1761399550836,3.95513066,192.81,192.72,2.75]
[1761399551032,3.95513066,192.8,192.72,2.75]
[1761399551228,3.95513066,192.79,192.72,2.75]
[1761399551434,3.95513066,192.78,192.72,2.75]
[1761399551632,3.95513066,192.77,192.72,2.75]
[1761399551831,4.80714431,192.82,192.72,2.75]
[1761399552033,3.95529639,192.81,192.72,2.75]
[1761399552234,3.95529639,192.8,192.72,2.75]
[1761399552443,3.95529639,192.79,192.72,2.75]
[1761399552745,3.95529639,192.78,192.72,2.75]
[1761399552946,3.95529639,192.77,192.72,2.75]
[1761399553149,1.19961949,192.8,192.72,2.75]
[1761399553346,3.95546464,192.79,192.72,2.75]
[1761399553548,3.95546464,192.78,192.72,2.75]
[1761399553846,3.95546464,192.77,192.72,2.75]
[1761399554045,1.19961949,192.8,192.72,2.75]
[1761399554245,3.95563996,192.79,192.72,2.75]
[1761399554446,3.95563996,192.78,192.72,2.75]
[1761399554746,3.95563996,192.77,192.72,2.75]
[1761399554947,1.19961949,192.8,192.72,2.75]
[1761399555146,3.95618551,192.79,192.72,2.75]
[1761399555452,3.95618551,192.78,192.72,2.75]
[1761399555643,3.95618551,192.77,192.72,2.75]
[1761399555953,1.19961949,192.8,192.72,2.75]
[1761399556136,3.95653355,192.79,192.72,2.75]
[1761399556342,3.95653355,192.78,192.72,2.75]
[1761399556543,1.19961949,192.8,192.72,2.75]
[1761399556744,3.95675939,192.79,192.72,2.75]